fUST/lending_fUST_20250429
["ID","MTS","AMOUNT","RATE_DAILY","PERIOD"]
[359304851,1745902243720,-46356.93626177,0.000274,2]
[359304852,1745902243744,-3058.42541582,0.000274,2]
[359304853,1745902243756,-773.83,0.000274,2]
[359304873,1745902246513,-403.0,0.00022768,2]
[359304875,1745902246523,-403.0,0.00025768,2]
[359304876,1745902246533,-26171.63787869,0.000274,2]
[359304878,1745902246543,-151.0,0.000274,7]
[359304880,1745902246552,-151.0,0.000274,7]
[359304881,1745902246561,-151.0,0.000274,7]
[359304882,1745902246571,-151.0,0.000274,7]
[359304884,1745902246580,-151.0,0.000274,7]
[359304885,1745902246590,-151.0,0.000274,7]
[359304887,1745902246599,-151.0,0.000274,7]
[359304888,1745902246609,-151.0,0.000274,7]
[359304890,1745902246618,-151.0,0.000274,7]
[359304891,1745902246628,-151.0,0.000274,7]
[359304892,1745902246638,-151.0,0.000274,7]
[359304893,1745902246649,-151.0,0.000274,7]
[359304894,1745902246658,-151.0,0.000274,7]
[359304895,1745902246668,-151.0,0.000274,7]
[359304896,1745902246678,-257.24889,0.000274,7]
[359304897,1745902246687,-257.24889,0.000274,7]
[359304898,1745902246697,-659.92719,0.000274,7]
[359304899,1745902246706,-659.92719,0.000274,7]
[359304901,1745902246716,-169.481529,0.000274,7]
[359304902,1745902246725,-298.464157,0.000274,7]
[359304903,1745902246735,-169.481529,0.000274,7]
[359304904,1745902246744,-298.464157,0.000274,7]
[359304905,1745902246753,-151.0,0.000274,7]
[359304906,1745902246763,-302.362498,0.000274,7]
[359304907,1745902246772,-302.362498,0.000274,7]
[359304908,1745902246781,-1085.825459,0.0002745,2]
[359304909,1745902246792,-604.441,0.00027452,16]
[359304910,1745902246802,-184.639,0.00027452,16]
[359304911,1745902246811,-154.77819,0.00027452,7]
[359304912,1745902246821,-151.948831,0.00027452,7]
[359304913,1745902246831,-151.0,0.00027452,7]
[359304914,1745902246840,-151.0,0.00027452,7]
[359304915,1745902246851,-151.0,0.00027452,7]
[359304916,1745902246861,-616.149004,0.00027452,7]
[359304917,1745902246870,-616.149004,0.00027452,7]
[359304918,1745902246880,-151.0,0.00027452,7]
[359304919,1745902246890,-151.0,0.00027452,7]
[359304920,1745902246901,-151.0,0.00027452,7]
[359304921,1745902246910,-151.0,0.00027452,2]
[359304922,1745902246919,-151.0,0.00027452,2]
[359304923,1745902246928,-151.0,0.00027452,7]
[359304924,1745902246937,-151.0,0.00027452,7]
[359304925,1745902246946,-151.0,0.00027452,7]
[359304926,1745902246955,-169.481529,0.00027452,7]
[359304927,1745902246964,-169.481529,0.00027452,7]
[359304928,1745902246973,-317.96099324,0.00027502,2]
[359304929,1745902246983,-835.5887818,0.00027514,4]
[359304930,1745902246992,-500.0,0.00027589,2]
[359304931,1745902247001,-309.01028747,0.00027589,2]
[359304932,1745902247013,-265.99954666,0.00027589,2]
[359304933,1745902247023,-840.73483787,0.0002759,7]
[359304934,1745902247033,-421.28334683,0.0002759,7]
[359304935,1745902247042,-3249.10582829,0.0002759,7]
[359304936,1745902247052,-1085.825459,0.000276,2]
[359304937,1745902247061,-16547.7900418,0.0002774,2]
[359304938,1745902247071,-1085.825459,0.0002775,2]
[359304939,1745902247081,-151.0,0.00027768,7]
[359304940,1745902247091,-151.0,0.00027768,7]
[359304941,1745902247099,-151.0,0.00027768,7]
[359304942,1745902247108,-616.149004,0.00027768,7]
[359304943,1745902247117,-616.149004,0.00027768,7]
[359304944,1745902247127,-151.0,0.00027768,7]
[359304945,1745902247136,-151.0,0.00027768,7]
[359304946,1745902247147,-151.0,0.00027768,7]
[359304947,1745902247157,-151.0,0.00027768,7]
[359304948,1745902247166,-298.240102,0.00027768,7]
[359304949,1745902247176,-151.0,0.00027768,2]
[359304950,1745902247185,-151.0,0.00027768,2]
[359304951,1745902247195,-160.0,0.00027768,7]
[359304952,1745902247204,-151.0,0.00027768,7]
[359304953,1745902247213,-151.0,0.00027768,7]
[359304954,1745902247223,-151.0,0.00027768,7]
[359304955,1745902247232,-151.0,0.00027768,7]
[359304956,1745902247241,-151.0,0.00027768,7]
[359304957,1745902247250,-151.0,0.00027768,7]
[359304958,1745902247259,-155.706008,0.00027768,7]
[359304959,1745902247268,-257.24889,0.00027768,7]
[359304960,1745902247278,-257.24889,0.00027768,7]
[359304961,1745902247288,-659.92719,0.00027768,7]
[359304962,1745902247297,-659.92719,0.00027768,7]
[359304963,1745902247307,-169.481529,0.00027768,7]
[359304964,1745902247317,-298.464157,0.00027768,7]
[359304965,1745902247326,-169.481529,0.00027768,7]
[359304966,1745902247335,-298.464157,0.00027768,7]
[359304967,1745902247344,-302.362498,0.00027768,7]
[359304968,1745902247353,-302.362498,0.00027768,7]
[359304969,1745902247363,-16547.7900418,0.0002786,2]
[359304970,1745902247372,-616.149004,0.00027869,7]
[359304971,1745902247381,-616.149004,0.00027869,7]
[359304972,1745902247391,-160.0,0.00027869,7]
[359304973,1745902247401,-151.0,0.00027869,2]
[359304974,1745902247411,-151.0,0.00027869,2]
[359304975,1745902247420,-151.0,0.00027869,7]
[359304976,1745902247430,-151.0,0.0002787,7]
[359304977,1745902247439,-151.0,0.0002787,7]
[359304978,1745902247448,-151.0,0.0002787,7]
[359304979,1745902247458,-157.303055,0.0002787,7]
[359304980,1745902247467,-162.604461,0.0002787,7]
[359304981,1745902247477,-157.195264,0.0002787,7]
[359304982,1745902247486,-191.173577,0.0002787,7]
[359304983,1745902247496,-435.09377,0.0002787,7]
[359304984,1745902247506,-191.173577,0.0002787,7]
[359304985,1745902247515,-435.09377,0.0002787,7]
[359304986,1745902247525,-295.035398,0.0002787,7]
[359304987,1745902247534,-295.035398,0.0002787,7]
[359304988,1745902247543,-1254.82481,0.0002787,2]
[359304989,1745902247552,-1254.82481,0.0002787,2]
[359304990,1745902247561,-151.0,0.0002787,7]
[359304991,1745902247571,-151.0,0.0002787,7]
[359304992,1745902247581,-151.0,0.0002787,7]
[359304993,1745902247590,-151.0,0.0002787,7]
[359304994,1745902247599,-154.510714,0.0002787,7]
[359304995,1745902247609,-616.149004,0.0002787,7]
[359304996,1745902247618,-616.149004,0.0002787,7]
[359304997,1745902247628,-616.149004,0.0002787,7]
[359304998,1745902247637,-616.149004,0.0002787,7]
[359304999,1745902247648,-151.0,0.0002787,7]
[359305000,1745902247657,-151.0,0.0002787,7]
[359305001,1745902247666,-151.0,0.0002787,7]
[359305002,1745902247675,-151.0,0.0002787,7]
[359305003,1745902247685,-151.0,0.0002787,2]
[359305004,1745902247694,-151.0,0.0002787,2]
[359305005,1745902247703,-151.0,0.0002787,2]
[359305006,1745902247712,-151.0,0.0002787,2]
[359305007,1745902247722,-235.151898,0.0002787,7]
[359305008,1745902247732,-151.0,0.0002787,7]
[359305009,1745902247741,-152.280642,0.0002787,7]
[359305010,1745902247750,-151.0,0.0002787,7]
[359305011,1745902247759,-151.0,0.0002787,7]
[359305012,1745902247768,-151.0,0.0002787,7]
[359305013,1745902247778,-151.0,0.0002787,7]
[359305014,1745902247787,-151.0,0.0002787,7]
[359305015,1745902247796,-227.97204,0.0002787,7]
[359305016,1745902247806,-257.24889,0.0002787,7]
[359305017,1745902247815,-257.24889,0.0002787,7]
[359305018,1745902247824,-257.24889,0.0002787,7]
[359305019,1745902247834,-257.24889,0.0002787,7]
[359305020,1745902247844,-659.92719,0.0002787,7]
[359305021,1745902247853,-659.92719,0.0002787,7]
[359305022,1745902247863,-659.92719,0.0002787,7]
[359305023,1745902247872,-659.92719,0.0002787,7]
[359305024,1745902247881,-169.481529,0.0002787,7]
[359305025,1745902247891,-298.464157,0.0002787,7]
[359305026,1745902247901,-298.464157,0.0002787,7]
[359305027,1745902247911,-298.464157,0.0002787,7]
[359305028,1745902247920,-298.464157,0.0002787,7]
[359305029,1745902247929,-169.481529,0.0002787,7]
[359305030,1745902247938,-302.362498,0.0002787,7]
[359305031,1745902247947,-302.362498,0.0002787,7]
[359305032,1745902247956,-302.362498,0.0002787,7]
[359305033,1745902247966,-302.362498,0.0002787,7]
[359305034,1745902247975,-189.11167267,0.0002787,3]
[359305035,1745902247984,-500.0,0.00027873,5]
[359305036,1745902247994,-500.0,0.00027873,5]
[359305037,1745902248004,-500.0,0.00027873,5]
[359305039,1745902248016,-500.0,0.00027873,5]
[359305040,1745902248025,-502.31869675,0.00027873,5]
[359305041,1745902248034,-151.0,0.00027878,7]
[359305042,1745902248044,-151.0,0.00027878,7]
[359305043,1745902248054,-151.0,0.00027878,7]
[359305044,1745902248064,-151.0,0.00027878,7]
[359305045,1745902248073,-151.0,0.00027878,7]
[359305046,1745902248083,-242.191088,0.00027878,7]
[359305047,1745902248093,-151.0,0.00027878,7]
[359305048,1745902248103,-242.191088,0.00027878,7]
[359305049,1745902248114,-151.0,0.00027878,7]
[359305050,1745902248123,-151.0,0.00027878,7]
[359305051,1745902248133,-500.0,0.00027878,7]
[359305052,1745902248142,-500.0,0.00027878,7]
[359305053,1745902248152,-151.0,0.00027878,7]
[359305055,1745902248341,-164.159493,0.00027878,7]
[359305056,1745902248350,-164.159493,0.00027878,7]
[359305057,1745902248360,-151.0,0.00027878,7]
[359305058,1745902248370,-151.0,0.00027878,7]
[359305059,1745902248379,-191.173577,0.00027878,7]
[359305060,1745902248389,-191.173577,0.00027878,7]
[359305061,1745902248398,-177.003207,0.00027878,7]
[359305062,1745902248408,-177.003207,0.00027878,7]
[359305063,1745902248417,-151.0,0.00027878,7]
[359305064,1745902248426,-160.0,0.00027878,2]
[359305065,1745902248435,-151.0,0.00027878,7]
[359305066,1745902248445,-151.0,0.00027878,7]
[359305067,1745902248454,-257.24889,0.00027878,7]
[359305068,1745902248463,-257.24889,0.00027878,7]
[359305069,1745902248473,-659.92719,0.00027878,7]
[359305070,1745902248483,-659.92719,0.00027878,7]
[359305071,1745902248493,-298.464157,0.00027878,7]
[359305072,1745902248502,-298.464157,0.00027878,7]
[359305073,1745902248512,-302.362498,0.00027878,7]
[359305074,1745902248521,-302.362498,0.00027878,7]
[359305075,1745902248532,-151.0,0.00027879,7]
[359305076,1745902248541,-151.0,0.00027879,7]
[359305077,1745902248551,-151.0,0.00027879,7]
[359305078,1745902248561,-151.0,0.00027879,7]
[359305079,1745902248571,-151.0,0.00027879,7]
[359305080,1745902248580,-169.481529,0.00027879,7]
[359305081,1745902248590,-169.481529,0.00027879,7]
[359305082,1745902248599,-151.0,0.0002788,7]
[359305083,1745902248608,-151.0,0.0002788,7]
[359305084,1745902248618,-151.0,0.0002788,7]
[359305085,1745902248627,-151.0,0.0002788,7]
[359305086,1745902248636,-151.0,0.0002788,7]
[359305087,1745902248647,-151.0,0.0002788,7]
[359305088,1745902248657,-151.0,0.0002788,7]
[359305089,1745902248667,-151.0,0.0002788,7]
[359305090,1745902248677,-151.0,0.0002788,7]
[359305091,1745902248686,-151.0,0.0002788,7]
[359305092,1745902248697,-242.191088,0.0002788,7]
[359305093,1745902248706,-224.469442,0.0002788,7]
[359305094,1745902248716,-242.191088,0.0002788,7]
[359305095,1745902248725,-151.0,0.0002788,7]
[359305096,1745902248735,-151.0,0.0002788,7]
[359305097,1745902248744,-500.0,0.0002788,7]
[359305098,1745902248754,-500.0,0.0002788,7]
[359305099,1745902248763,-151.0,0.0002788,7]
[359305100,1745902248773,-164.159493,0.0002788,7]
[359305101,1745902248783,-164.159493,0.0002788,7]
[359305102,1745902248792,-151.0,0.0002788,7]
[359305103,1745902248802,-151.0,0.0002788,7]
[359305104,1745902248811,-191.173577,0.0002788,7]
[359305105,1745902248821,-435.09377,0.0002788,7]
[359305106,1745902248831,-191.173577,0.0002788,7]
[359305107,1745902248840,-435.09377,0.0002788,7]
[359305108,1745902248850,-295.035398,0.0002788,7]
[359305109,1745902248859,-295.035398,0.0002788,7]
[359305110,1745902248869,-177.003207,0.0002788,7]
[359305111,1745902248878,-1254.82481,0.0002788,2]
[359305112,1745902248887,-177.003207,0.0002788,7]
[359305113,1745902248896,-1254.82481,0.0002788,2]
[359305114,1745902248905,-151.0,0.0002788,7]
[359305116,1745902248914,-151.0,0.0002788,7]
[359305117,1745902248923,-616.149004,0.0002788,7]
[359305118,1745902248932,-616.149004,0.0002788,7]
[359305119,1745902248941,-151.0,0.0002788,2]
[359305120,1745902248950,-263.31041,0.0002788,2]
[359305121,1745902248959,-1085.825459,0.000279,2]
[359305122,1745902248969,-823.0,0.00027923,2]
[359305123,1745902248979,-200.44777969,0.0002793,3]
[359305124,1745902248988,-16547.7900418,0.00027952,2]
[359305125,1745902248997,-151.0,0.00027962,7]
[359305126,1745902249007,-151.0,0.00027962,7]
[359305127,1745902249020,-616.149004,0.00027962,7]
[359305128,1745902249029,-616.149004,0.00027962,7]
[359305129,1745902249039,-151.0,0.00027962,7]
[359305130,1745902249047,-151.0,0.00027962,7]
[359305131,1745902249057,-151.0,0.00027962,2]
[359305132,1745902249066,-151.0,0.00027962,7]
[359305133,1745902249075,-197.415378,0.00027962,7]
[359305134,1745902249084,-151.0,0.00027962,7]
[359305135,1745902249094,-257.24889,0.00027962,7]
[359305136,1745902249103,-257.24889,0.00027962,7]
[359305137,1745902249113,-659.92719,0.00027962,7]
[359305138,1745902249122,-659.92719,0.00027962,7]
[359305139,1745902249131,-169.481529,0.00027962,7]
[359305140,1745902249140,-298.464157,0.00027962,7]
[359305141,1745902249151,-169.481529,0.00027962,7]
[359305142,1745902249160,-298.464157,0.00027962,7]
[359305143,1745902249169,-302.362498,0.00027962,7]
[359305144,1745902249178,-302.362498,0.00027962,7]
[359305145,1745902249187,-500.0,0.00027973,2]
[359305146,1745902249197,-500.0,0.00027973,5]
[359305147,1745902249206,-300.0,0.00027973,5]
[359305148,1745902249215,-500.0,0.00027973,5]
[359305149,1745902249225,-500.0,0.00027973,5]
[359305150,1745902249234,-500.0,0.00027973,5]
[359305151,1745902249243,-500.0,0.00027973,5]
[359305152,1745902249252,-500.0,0.00027973,5]
[359305153,1745902249262,-500.0,0.00027973,5]
[359305154,1745902249271,-500.0,0.00027973,5]
[359305155,1745902249281,-500.0,0.00027973,5]
[359305156,1745902249290,-33095.5800836,0.0002798,2]
[359305157,1745902249300,-435.09377,0.00027986,7]
[359305158,1745902249309,-435.09377,0.00027986,7]
[359305159,1745902249319,-295.035398,0.00027986,7]
[359305160,1745902249328,-295.035398,0.00027986,7]
[359305161,1745902249337,-1254.82481,0.00027986,2]
[359305162,1745902249347,-1254.82481,0.00027986,2]
[359305163,1745902249356,-151.0,0.00027986,7]
[359305164,1745902249364,-151.0,0.00027987,7]
[359305165,1745902249372,-151.0,0.00027987,7]
[359305166,1745902249380,-151.0,0.00027987,7]
[359305167,1745902249389,-151.0,0.00027987,7]
[359305168,1745902249400,-191.173577,0.00027987,7]
[359305169,1745902249409,-191.173577,0.00027987,7]
[359305170,1745902249418,-151.0,0.00027988,2]
[359305171,1745902249426,-151.0,0.0002799,7]
[359305172,1745902249435,-151.966109,0.0002799,7]
[359305173,1745902249445,-151.0,0.0002799,7]
[359305174,1745902249454,-243.080778,0.0002799,7]
[359305175,1745902249463,-264.659071,0.0002799,7]
[359305176,1745902249473,-151.0,0.0002799,7]
[359305177,1745902249482,-157.518977,0.0002799,7]
[359305178,1745902249491,-3044.27750631,0.0002799,7]
[359305179,1745902249500,-151.0,0.0002799,7]
[359305180,1745902249510,-151.0,0.0002799,7]
[359305181,1745902249519,-151.0,0.0002799,7]
[359305182,1745902249529,-151.0,0.0002799,7]
[359305183,1745902249538,-151.0,0.0002799,7]
[359305184,1745902249547,-151.0,0.0002799,7]
[359305185,1745902249557,-151.0,0.0002799,7]
[359305186,1745902249566,-151.0,0.0002799,7]
[359305187,1745902249576,-151.0,0.0002799,7]
[359305188,1745902249585,-151.0,0.0002799,7]
[359305189,1745902249595,-152.039326,0.0002799,7]
[359305190,1745902249604,-151.0,0.0002799,7]
[359305191,1745902249613,-151.0,0.0002799,7]
[359305192,1745902249623,-151.0,0.0002799,7]
[359305193,1745902249632,-151.0,0.0002799,7]
[359305194,1745902249641,-151.0,0.0002799,7]
[359305195,1745902249652,-151.0,0.0002799,7]
[359305196,1745902249661,-152.454689,0.0002799,7]
[359305197,1745902249671,-151.0,0.0002799,7]
[359305198,1745902249682,-151.0,0.0002799,7]
[359305199,1745902249691,-151.0,0.0002799,7]
[359305200,1745902249701,-151.0,0.0002799,7]
[359305201,1745902249710,-151.0,0.0002799,7]
[359305202,1745902249721,-233.795054,0.0002799,7]
[359305204,1745902249731,-242.191088,0.0002799,7]
[359305205,1745902249741,-242.191088,0.0002799,7]
[359305206,1745902249751,-242.191088,0.0002799,7]
[359305207,1745902249761,-242.191088,0.0002799,7]
[359305208,1745902249771,-218.67371,0.0002799,7]
[359305209,1745902249780,-151.0,0.0002799,7]
[359305210,1745902249790,-168.188841,0.0002799,7]
[359305211,1745902249800,-500.0,0.0002799,7]
[359305212,1745902249809,-500.0,0.0002799,7]
[359305213,1745902249820,-500.0,0.0002799,7]
[359305214,1745902249830,-500.0,0.0002799,7]
[359305215,1745902249839,-151.0,0.0002799,7]
[359305216,1745902249849,-164.159493,0.0002799,7]
[359305217,1745902249859,-164.159493,0.0002799,7]
[359305218,1745902249869,-164.159493,0.0002799,7]
[359305219,1745902249878,-164.159493,0.0002799,7]
[359305220,1745902249888,-151.0,0.0002799,7]
[359305221,1745902249899,-151.0,0.0002799,7]
[359305222,1745902249909,-194.453801,0.0002799,7]
[359305223,1745902249919,-191.173577,0.0002799,7]
[359305224,1745902249929,-435.09377,0.0002799,7]
[359305225,1745902249939,-191.173577,0.0002799,7]
[359305226,1745902249948,-435.09377,0.0002799,7]
[359305227,1745902249958,-295.035398,0.0002799,7]
[359305228,1745902249967,-177.003207,0.0002799,7]
[359305229,1745902249977,-295.035398,0.0002799,7]
[359305230,1745902249986,-177.003207,0.0002799,7]
[359305231,1745902249996,-1254.82481,0.0002799,2]
[359305232,1745902250006,-177.003207,0.0002799,7]
[359305233,1745902250018,-177.003207,0.0002799,7]
[359305234,1745902250028,-1254.82481,0.0002799,2]
[359305235,1745902250037,-151.0,0.0002799,7]
[359305236,1745902250046,-151.0,0.0002799,7]
[359305237,1745902250056,-151.0,0.0002799,7]
[359305238,1745902250066,-151.0,0.0002799,7]
[359305239,1745902250076,-151.0,0.0002799,7]
[359305240,1745902250085,-616.149004,0.0002799,7]
[359305241,1745902250095,-616.149004,0.0002799,7]
[359305242,1745902250104,-616.149004,0.0002799,7]
[359305243,1745902250114,-616.149004,0.0002799,7]
[359305244,1745902250123,-616.149004,0.0002799,7]
[359305245,1745902250133,-616.148994,0.0002799,7]
[359305246,1745902250143,-158.112042,0.0002799,7]
[359305247,1745902250154,-151.0,0.0002799,7]
[359305248,1745902250163,-151.0,0.0002799,7]
[359305249,1745902250172,-151.0,0.0002799,7]
[359305250,1745902250182,-151.0,0.0002799,2]
[359305251,1745902250191,-151.0,0.0002799,2]
[359305252,1745902250200,-151.0,0.0002799,2]
[359305253,1745902250210,-82738.9502091,0.0002799,2]
[359305254,1745902250219,-421.28334683,0.0002799,7]
[359305255,1745902250228,-151.0,0.0002799,7]
[359305256,1745902250238,-151.0,0.0002799,7]
[359305257,1745902250247,-151.0,0.0002799,7]
[359305258,1745902250256,-151.0,0.0002799,7]
[359305259,1745902250266,-151.0,0.0002799,7]
[359305260,1745902250275,-257.24889,0.0002799,7]
[359305261,1745902250284,-257.24889,0.0002799,7]
[359305262,1745902250291,-257.24889,0.0002799,7]
[359305263,1745902250300,-257.24889,0.0002799,7]
[359305264,1745902250310,-257.24889,0.0002799,7]
[359305265,1745902250320,-257.248886,0.0002799,7]
[359305266,1745902250330,-659.92719,0.0002799,7]
[359305267,1745902250340,-659.92719,0.0002799,7]
[359305268,1745902250350,-659.92719,0.0002799,7]
[359305269,1745902250359,-659.92719,0.0002799,7]
[359305270,1745902250368,-659.92719,0.0002799,7]
[359305271,1745902250378,-659.92718499,0.0002799,7]
[359305272,1745902250387,-169.481529,0.0002799,7]
[359305273,1745902250397,-169.481529,0.0002799,7]
[359305274,1745902250406,-298.464157,0.0002799,7]
[359305275,1745902250415,-298.464157,0.0002799,7]
[359305276,1745902250425,-298.464157,0.0002799,7]
[359305277,1745902250434,-169.481529,0.0002799,7]
[359305278,1745902250443,-298.464157,0.0002799,7]
[359305279,1745902250453,-169.481529,0.0002799,7]
[359305280,1745902250463,-298.464157,0.0002799,7]
[359305281,1745902250472,-298.464157,0.0002799,7]
[359305282,1745902250481,-302.362498,0.0002799,7]
[359305283,1745902250491,-302.362498,0.0002799,7]
[359305284,1745902250500,-302.362498,0.0002799,7]
[359305285,1745902250509,-302.362498,0.0002799,7]
[359305286,1745902250519,-302.362498,0.0002799,7]
[359305287,1745902250528,-302.362494,0.0002799,7]
[359305288,1745902250537,-151.97729,0.00028,7]
[359305289,1745902250547,-151.710057,0.00028,7]
[359305290,1745902250556,-151.0,0.00028,7]
[359305291,1745902250566,-151.0,0.00028,7]
[359305292,1745902250575,-151.0,0.00028,7]
[359305293,1745902250585,-151.0,0.00028,7]
[359305294,1745902250595,-151.0,0.00028,7]
[359305295,1745902250606,-151.0,0.00028,7]
[359305296,1745902250615,-151.0,0.00028,7]
[359305297,1745902250625,-151.0,0.00028,7]
[359305298,1745902250634,-1930.45,0.00028,2]
[359305299,1745902250643,-151.0,0.00028,7]
[359305300,1745902250654,-151.0,0.00028,7]
[359305301,1745902250663,-151.0,0.00028,7]
[359305302,1745902250673,-242.191088,0.00028,7]
[359305303,1745902250683,-242.191088,0.00028,7]
[359305304,1745902250692,-500.0,0.00028,7]
[359305305,1745902250702,-500.0,0.00028,7]
[359305306,1745902250711,-151.0,0.00028,7]
[359305307,1745902250720,-151.0,0.00028,7]
[359305308,1745902250730,-164.159493,0.00028,7]
[359305309,1745902250739,-164.159493,0.00028,7]
[359305310,1745902250748,-151.0,0.00028,7]
[359305311,1745902250757,-191.173577,0.00028,7]
[359305312,1745902250767,-191.173577,0.00028,7]
[359305313,1745902250777,-435.09377,0.00028,7]
[359305314,1745902250786,-435.09377,0.00028,7]
[359305315,1745902250795,-191.173577,0.00028,7]
[359305316,1745902250805,-191.173577,0.00028,7]
[359305317,1745902250814,-435.09377,0.00028,7]
[359305318,1745902250823,-435.09377,0.00028,7]
[359305319,1745902250833,-295.035398,0.00028,7]
[359305320,1745902250842,-295.035398,0.00028,7]
[359305321,1745902250852,-295.035398,0.00028,7]
[359305322,1745902250862,-177.003207,0.00028,7]
[359305323,1745902250871,-295.035398,0.00028,7]
[359305324,1745902250881,-1254.82481,0.00028,2]
[359305325,1745902250890,-1254.82481,0.00028,2]
[359305326,1745902250900,-177.003207,0.00028,7]
[359305327,1745902250909,-1254.82481,0.00028,2]
[359305328,1745902250917,-1254.82481,0.00028,2]
[359305329,1745902250926,-194.281112,0.00028,7]
[359305330,1745902250934,-172.69223,0.00028,7]
[359305331,1745902250944,-183.267484,0.00028,7]
[359305332,1745902250954,-151.0,0.00028,13]
[359305333,1745902250963,-8826.1918482,0.00028,30]
[359305334,1745902250972,-151.0,0.00028,7]
[359305335,1745902250982,-169.481529,0.00028,7]
[359305336,1745902250991,-169.481529,0.00028,7]
[359305337,1745902251000,-284374.36460586,0.00028,30]
[359305338,1745902251010,-160.0,0.00028,30]
[359305339,1745902251025,-421.28334683,0.00028,30]
[359305340,1745902251035,-151.0,0.00028043,2]
[359305341,1745902251047,-198.0,0.00028098,2]
[359305342,1745902251056,-151.0,0.000281,12]
[359305343,1745902251065,-3249.10582829,0.00028176,7]
[359305344,1745902251075,-151.0,0.000283,12]
[359305345,1745902251084,-485.89244019,0.00028398,2]
[359305346,1745902251094,-151.0,0.000285,14]
[359305347,1745902251103,-634.0,0.000285,2]
[359305348,1745902251113,-151.0,0.000287,14]
[359305349,1745902251124,-999.48,0.00028758,3]
[359305350,1745902251134,-499.74,0.00028758,3]
[359305351,1745902251143,-3249.10582829,0.00028762,8]
[359305352,1745902251154,-403.0,0.00028768,2]
[359305353,1745902251163,-151.0,0.000288,12]
[359305354,1745902251172,-151.0,0.00028856,7]
[359305355,1745902251182,-150.038741,0.000289,2]
[359305356,1745902251191,-151.0,0.00028962,7]
[359305357,1745902251201,-191.173577,0.00028962,7]
[359305358,1745902251211,-191.173577,0.00028962,7]
[359305359,1745902251220,-303.6746814,0.00028973,5]
[359305360,1745902251229,-340.57265342,0.00028973,5]
[359305361,1745902251238,-500.0,0.00028973,5]
[359305362,1745902251248,-500.0,0.00028973,5]
[359305363,1745902251257,-500.0,0.00028973,5]
[359305364,1745902251267,-500.0,0.00028973,5]
[359305365,1745902251276,-500.0,0.00028973,5]
[359305366,1745902251285,-634.53795907,0.00028973,5]
[359305367,1745902251294,-500.0,0.00028973,5]
[359305368,1745902251303,-542.61153529,0.00028973,5]
[359305369,1745902251312,-500.0,0.00028973,5]
[359305370,1745902251322,-500.0,0.00028973,5]
[359305371,1745902251331,-500.0,0.00028973,5]
[359305372,1745902251340,-151.0,0.00028973,7]
[359305373,1745902251350,-151.0,0.00028973,7]
[359305374,1745902251359,-227.963677,0.00028973,7]
[359305375,1745902251368,-151.0,0.00028973,7]
[359305376,1745902251378,-242.191088,0.00028973,7]
[359305377,1745902251388,-242.191088,0.00028973,7]
[359305378,1745902251398,-500.0,0.00028973,7]
[359305379,1745902251407,-500.0,0.00028973,7]
[359305380,1745902251416,-164.159493,0.00028973,7]